[Event "Schack-SM 2022: Mastarklassen"]
[Site "Fyrishov, Idrottsgatan 2, Uppsala, Sweden"]
[Date "2022.07.07"]
[Round "6.2"]
[White "Eriksson, Dan"]
[Black "Johnson, Daniel"]
[Result "1-0"]
[TimeControl "90 minutes for 40 moves + 30 minutes for the rest of the game + 30 seconds per move from move one."]
[WhiteFideId "1710095"]
[BlackFideId "1721283"]
[WhiteElo "2246"]
[BlackElo "2191"]

1. e4 {[%clk 01:30:56]} {[%emt 00:00:02]} e5 {[%clk 01:20:08]} {[%emt
00:10:51]} 2. Nf3 {[%clk 01:30:20]} {[%emt 00:01:07]} Nc6 {[%clk 01:20:31]}
{[%emt 00:00:07]} 3. d4 {[%clk 01:30:20]} {[%emt 00:00:30]} exd4 {[%clk
01:20:53]} {[%emt 00:00:09]} 4. Nxd4 {[%clk 01:30:45]} {[%emt 00:00:05]} Nf6
{[%clk 01:21:16]} {[%emt 00:00:06]} 5. Nc3 {[%clk 01:30:18]} {[%emt 00:00:58]}
Bb4 {[%clk 01:21:19]} {[%emt 00:00:27]} 6. Nxc6 {[%clk 01:30:35]} {[%emt
00:00:13]} bxc6 {[%clk 01:21:40]} {[%emt 00:00:09]} 7. Bd3 {[%clk 01:30:57]}
{[%emt 00:00:07]} O-O {[%clk 01:21:42]} {[%emt 00:00:28]} 8. O-O {[%clk
01:31:18]} {[%emt 00:00:10]} d5 {[%clk 01:21:55]} {[%emt 00:00:17]} 9. Bd2
{[%clk 01:31:04]} {[%emt 00:00:44]} Rb8 {[%clk 00:53:58]} {[%emt 00:28:27]} 10.
Re1 {[%clk 01:30:44]} {[%emt 00:00:50]} Bg4 {[%clk 00:42:29]} {[%emt 00:11:59]}
11. Qc1 {[%clk 01:25:12]} {[%emt 00:06:02]} Re8 {[%clk 00:41:53]} {[%emt
00:01:06]} 12. a3 {[%clk 01:18:01]} {[%emt 00:07:42]} Bxc3 {[%clk 00:33:55]}
{[%emt 00:08:28]} 13. Bxc3 {[%clk 01:16:29]} {[%emt 00:02:01]} dxe4 {[%clk
00:33:14]} {[%emt 00:01:11]} 14. Bc4 {[%clk 00:50:44]} {[%emt 00:26:15]} Nd5
{[%clk 00:30:22]} {[%emt 00:03:22]} 15. Bd4 {[%clk 00:45:31]} {[%emt 00:05:43]}
Re6 {[%clk 00:27:24]} {[%emt 00:03:28]} 16. Bxa7 {[%clk 00:42:59]} {[%emt
00:03:03]} Ra8 {[%clk 00:26:37]} {[%emt 00:01:16]} 17. Bd4 {[%clk 00:36:47]}
{[%emt 00:06:43]} Rg6 {[%clk 00:17:35]} {[%emt 00:09:31]} 18. Bf1 {[%clk
00:32:57]} {[%emt 00:04:21]} Qh4 {[%clk 00:07:27]} {[%emt 00:10:37]} 19. c4
{[%clk 00:19:58]} {[%emt 00:13:29]} Bf3 {[%clk 00:06:12]} {[%emt 00:01:45]} 20.
Be5 {[%clk 00:19:50]} {[%emt 00:00:38]} e3 {[%clk 00:00:32]} {[%emt 00:06:10]}
21. Bg3 {[%clk 00:13:42]} {[%emt 00:06:38]} Rxg3 {[%clk 00:00:32]} {[%emt
00:00:30]} 22. fxg3 {[%clk 00:12:27]} {[%emt 00:01:45]} Qd4 {[%clk 00:00:39]}
{[%emt 00:00:24]} 23. Kh1 {[%clk 00:11:40]} {[%emt 00:01:17]} Re8 {[%clk
00:00:43]} {[%emt 00:00:25]} 24. gxf3 {[%clk 00:11:08]} {[%emt 00:01:03]} Nf6
{[%clk 00:00:50]} {[%emt 00:00:22]} 25. Qc3 {[%clk 00:11:01]} {[%emt 00:00:37]}
Qc5 {[%clk 00:00:32]} {[%emt 00:00:49]} 26. b4 {[%clk 00:10:46]} {[%emt
00:00:45]} Qa7 {[%clk 00:00:33]} {[%emt 00:00:29]} 27. Rad1 {[%clk 00:10:47]}
{[%emt 00:00:29]} 1-0

[Event "Schack-SM 2022: Mastarklassen"]
[Site "Fyrishov, Idrottsgatan 2, Uppsala, Sweden"]
[Date "2022.07.07"]
[Round "6.3"]
[White "Malmstig, Erik"]
[Black "Jogstad, Daniel"]
[Result "1/2-1/2"]
[TimeControl "90 minutes for 40 moves + 30 minutes for the rest of the game + 30 seconds per move from move one."]
[WhiteTitle "FM"]
[BlackTitle "CM"]
[WhiteFideId "1702866"]
[BlackFideId "1718959"]
[WhiteElo "2204"]
[BlackElo "2057"]

1. d4 {[%clk 01:30:55]} {[%emt 00:00:03]} Nf6 {[%clk 01:30:55]} {[%emt
00:00:06]} 2. c4 {[%clk 01:31:07]} {[%emt 00:00:17]} g6 {[%clk 01:31:19]}
{[%emt 00:00:06]} 3. Nc3 {[%clk 01:31:29]} {[%emt 00:00:08]} Bg7 {[%clk
01:31:45]} {[%emt 00:00:05]} 4. Bg5 {[%clk 01:31:50]} {[%emt 00:00:08]} h6
{[%clk 01:31:33]} {[%emt 00:00:42]} 5. Bd2 {[%clk 01:32:04]} {[%emt 00:00:17]}
O-O {[%clk 01:30:06]} {[%emt 00:01:57]} 6. Qc1 {[%clk 01:32:06]} {[%emt
00:00:28]} e5 {[%clk 01:20:39]} {[%emt 00:09:57]} 7. dxe5 {[%clk 01:28:48]}
{[%emt 00:03:48]} Ng4 {[%clk 01:21:03]} {[%emt 00:00:06]} 8. Nf3 {[%clk
01:20:24]} {[%emt 00:08:55]} Nc6 {[%clk 01:20:59]} {[%emt 00:00:34]} 9. e4
{[%clk 01:14:11]} {[%emt 00:06:43]} Ncxe5 {[%clk 01:06:38]} {[%emt 00:14:51]}
10. Be2 {[%clk 01:04:45]} {[%emt 00:09:54]} Kh7 {[%clk 00:47:44]} {[%emt
00:19:25]} 11. h4 {[%clk 00:55:16]} {[%emt 00:09:59]} d6 {[%clk 00:42:36]}
{[%emt 00:05:38]} 12. Nxe5 {[%clk 00:44:12]} {[%emt 00:11:34]} Nxe5 {[%clk
00:42:17]} {[%emt 00:00:49]} 13. h5 {[%clk 00:40:22]} {[%emt 00:04:50]} g5
{[%clk 00:43:12]} {[%emt 00:00:05]} 14. Qc2 {[%clk 00:38:57]} {[%emt 00:01:56]}
Be6 {[%clk 00:36:39]} {[%emt 00:07:03]} 15. Nd5 {[%clk 00:34:03]} {[%emt
00:05:23]} c6 {[%clk 00:37:03]} {[%emt 00:00:06]} 16. Ne3 {[%clk 00:33:21]}
{[%emt 00:01:11]} b5 {[%clk 00:28:33]} {[%emt 00:09:01]} 17. cxb5 {[%clk
00:26:38]} {[%emt 00:07:14]} cxb5 {[%clk 00:28:59]} {[%emt 00:00:03]} 18. O-O
{[%clk 00:26:54]} {[%emt 00:00:12]} Rc8 {[%clk 00:28:57]} {[%emt 00:00:34]} 19.
Qd1 {[%clk 00:26:11]} {[%emt 00:01:12]} Nc4 {[%clk 00:20:40]} {[%emt 00:08:48]}
20. Nxc4 {[%clk 00:23:32]} {[%emt 00:03:09]} bxc4 {[%clk 00:20:55]} {[%emt
00:00:15]} 21. Qc2 {[%clk 00:21:55]} {[%emt 00:02:07]} Be5 {[%clk 00:20:49]}
{[%emt 00:00:37]} 22. Bc3 {[%clk 00:17:52]} {[%emt 00:04:33]} g4 {[%clk
00:21:03]} {[%emt 00:00:16]} 23. Bxe5 {[%clk 00:11:46]} {[%emt 00:06:36]} dxe5
{[%clk 00:21:26]} {[%emt 00:00:06]} 24. Qc3 {[%clk 00:11:50]} {[%emt 00:00:27]}
Qg5 {[%clk 00:20:30]} {[%emt 00:01:26]} 25. Qa5 {[%clk 00:10:55]} {[%emt
00:01:24]} Rfd8 {[%clk 00:15:26]} {[%emt 00:05:33]} 26. Rad1 {[%clk 00:10:26]}
{[%emt 00:00:59]} Rxd1 {[%clk 00:14:01]} {[%emt 00:01:56]} 27. Rxd1 {[%clk
00:10:19]} {[%emt 00:01:06]} g3 {[%clk 00:14:58]} {[%emt 00:00:04]} 28. Qxa7
{[%clk 00:09:45]} {[%emt 00:01:04]} c3 {[%clk 00:14:35]} {[%emt 00:00:53]} 29.
bxc3 {[%clk 00:09:49]} {[%emt 00:00:27]} Rxc3 {[%clk 00:15:00]} {[%emt
00:00:04]} 30. fxg3 {[%clk 00:09:53]} {[%emt 00:00:26]} Rc2 {[%clk 00:14:19]}
{[%emt 00:01:11]} 31. Qf2 {[%clk 00:05:43]} {[%emt 00:04:40]} Rxa2 {[%clk
00:12:48]} {[%emt 00:02:03]} 32. Qf3 {[%clk 00:05:38]} {[%emt 00:00:34]} Rxe2
{[%clk 00:07:46]} {[%emt 00:05:32]} 33. Qxe2 {[%clk 00:05:57]} {[%emt
00:00:11]} Bg4 {[%clk 00:08:13]} {[%emt 00:00:03]} 34. Qd2 {[%clk 00:05:07]}
{[%emt 00:01:20]} Bxd1 {[%clk 00:08:26]} {[%emt 00:00:17]} 35. Qxd1 {[%clk
00:05:34]} {[%emt 00:00:03]} Qe3+ {[%clk 00:08:50]} {[%emt 00:00:07]} 36. Kf1
{[%clk 00:05:25]} {[%emt 00:00:39]} Qxe4 {[%clk 00:09:07]} {[%emt 00:00:13]} 37.
Qf3 {[%clk 00:05:30]} {[%emt 00:00:25]} Qb1+ {[%clk 00:07:06]} {[%emt
00:02:31]} 38. Kf2 {[%clk 00:05:49]} {[%emt 00:00:11]} Qb6+ {[%clk 00:07:23]}
{[%emt 00:00:13]} 39. Ke2 {[%clk 00:05:40]} {[%emt 00:00:38]} Qe6 {[%clk
00:07:02]} {[%emt 00:00:50]} 40. Qe4+ {[%clk 00:03:55]} {[%emt 00:02:16]} Kg7
{[%clk 00:07:05]} {[%emt 00:00:27]} 41. Kf2 {[%clk 00:27:55]} {[%emt 00:06:30]}
Kf6 {[%clk 00:36:38]} {[%emt 00:00:58]} 42. Qh4+ {[%clk 00:27:45]} {[%emt
00:00:39]} Kg7 {[%clk 00:36:51]} {[%emt 00:00:17]} 43. Qe4 {[%clk 00:28:04]}
{[%emt 00:00:11]} Qf6+ {[%clk 00:35:58]} {[%emt 00:01:23]} 44. Ke2 {[%clk
00:28:01]} {[%emt 00:00:34]} Qa6+ {[%clk 00:27:18]} {[%emt 00:09:10]} 45. Kf3
{[%clk 00:27:47]} {[%emt 00:00:44]} Qf1+ {[%clk 00:18:17]} {[%emt 00:09:31]} 46.
Kg4 {[%clk 00:28:06]} {[%emt 00:00:10]} Qd1+ {[%clk 00:18:43]} {[%emt
00:00:05]} 47. Qf3 {[%clk 00:24:39]} {[%emt 00:03:57]} Qxf3+ {[%clk 00:19:08]}
{[%emt 00:00:05]} 48. gxf3 {[%clk 00:24:48]} {[%emt 00:00:21]} Kf6 {[%clk
00:19:09]} {[%emt 00:00:29]} 49. Kh4 {[%clk 00:20:51]} {[%emt 00:04:26]} Ke6
{[%clk 00:06:31]} {[%emt 00:13:09]} 50. g4 {[%clk 00:20:27]} {[%emt 00:00:54]}
f6 {[%clk 00:06:50]} {[%emt 00:00:11]} 51. Kg3 {[%clk 00:20:02]} {[%emt
00:00:55]} f5 {[%clk 00:06:58]} {[%emt 00:00:22]} 52. f4 {[%clk 00:18:40]}
{[%emt 00:01:52]} fxg4 {[%clk 00:06:20]} {[%emt 00:01:09]} 53. fxe5 {[%clk
00:18:36]} {[%emt 00:00:33]} Kxe5 {[%clk 00:06:39]} {[%emt 00:00:11]} 1/2-1/2

[Event "Schack-SM 2022: Mastarklassen"]
[Site "Fyrishov, Idrottsgatan 2, Uppsala, Sweden"]
[Date "2022.07.07"]
[Round "6.4"]
[White "Landgren, Andreas"]
[Black "Eriksson, Jorgen"]
[Result "1-0"]
[TimeControl "90 minutes for 40 moves + 30 minutes for the rest of the game + 30 seconds per move from move one."]
[WhiteTitle "FM"]
[WhiteFideId "1704311"]
[BlackFideId "1701967"]
[WhiteElo "2224"]
[BlackElo "2200"]

1. e4 {[%clk 01:30:57]} {[%emt 00:00:02]} c6 {[%clk 01:30:28]} {[%emt
00:00:33]} 2. d4 {[%clk 01:31:20]} {[%emt 00:00:06]} d5 {[%clk 01:30:50]}
{[%emt 00:00:08]} 3. e5 {[%clk 01:31:45]} {[%emt 00:00:05]} Bf5 {[%clk
01:31:13]} {[%emt 00:00:07]} 4. h4 {[%clk 01:31:55]} {[%emt 00:00:20]} h5
{[%clk 01:31:19]} {[%emt 00:00:24]} 5. Bd3 {[%clk 01:32:16]} {[%emt 00:00:10]}
Bxd3 {[%clk 01:31:32]} {[%emt 00:00:16]} 6. Qxd3 {[%clk 01:32:43]} {[%emt
00:00:03]} e6 {[%clk 01:31:42]} {[%emt 00:00:20]} 7. Bg5 {[%clk 01:33:03]}
{[%emt 00:00:10]} Qb6 {[%clk 01:31:10]} {[%emt 00:01:01]} 8. Nd2 {[%clk
01:33:24]} {[%emt 00:00:09]} c5 {[%clk 01:30:16]} {[%emt 00:01:24]} 9. c4
{[%clk 01:33:43]} {[%emt 00:00:11]} Qxb2 {[%clk 01:29:32]} {[%emt 00:01:14]} 10.
Rd1 {[%clk 01:34:03]} {[%emt 00:00:10]} Qxa2 {[%clk 01:12:41]} {[%emt
00:17:21]} 11. Ngf3 {[%clk 01:30:25]} {[%emt 00:04:08]} Nc6 {[%clk 01:05:25]}
{[%emt 00:07:46]} 12. O-O {[%clk 01:21:58]} {[%emt 00:08:57]} Nb4 {[%clk
00:56:20]} {[%emt 00:09:34]} 13. Qe2 {[%clk 01:11:42]} {[%emt 00:10:46]} Nh6
{[%clk 00:51:31]} {[%emt 00:05:19]} 14. Ra1 {[%clk 01:02:29]} {[%emt 00:09:43]}
Qc2 {[%clk 00:51:43]} {[%emt 00:00:18]} 15. cxd5 {[%clk 01:02:41]} {[%emt
00:00:18]} Qd3 {[%clk 00:51:12]} {[%emt 00:01:01]} 16. Qxd3 {[%clk 01:02:59]}
{[%emt 00:00:12]} Nxd3 {[%clk 00:51:39]} {[%emt 00:00:02]} 17. d6 {[%clk
01:03:10]} {[%emt 00:00:18]} Nf5 {[%clk 00:28:49]} {[%emt 00:23:20]} 18. Ra3
{[%clk 00:58:34]} {[%emt 00:05:07]} Nb4 {[%clk 00:21:26]} {[%emt 00:07:53]} 19.
dxc5 {[%clk 00:58:14]} {[%emt 00:00:50]} f6 {[%clk 00:15:00]} {[%emt 00:06:56]}
20. exf6 {[%clk 00:57:38]} {[%emt 00:01:07]} Nc6 {[%clk 00:13:36]} {[%emt
00:01:53]} 21. Nc4 {[%clk 00:55:24]} {[%emt 00:02:43]} gxf6 {[%clk 00:12:18]}
{[%emt 00:01:48]} 22. Bxf6 {[%clk 00:55:32]} {[%emt 00:00:22]} Bg7 {[%clk
00:12:14]} {[%emt 00:00:34]} 23. Bxg7 {[%clk 00:53:44]} {[%emt 00:02:18]} Nxg7
{[%clk 00:12:38]} {[%emt 00:00:06]} 24. Rb1 {[%clk 00:53:30]} {[%emt 00:00:45]}
Rb8 {[%clk 00:10:04]} {[%emt 00:03:03]} 25. Nce5 {[%clk 00:52:20]} {[%emt
00:01:40]} O-O {[%clk 00:08:15]} {[%emt 00:02:20]} 26. Nxc6 {[%clk 00:51:24]}
{[%emt 00:01:26]} bxc6 {[%clk 00:08:38]} {[%emt 00:00:07]} 27. Rxb8 {[%clk
00:51:48]} {[%emt 00:00:06]} Rxb8 {[%clk 00:08:59]} {[%emt 00:00:08]} 28. Rxa7
{[%clk 00:52:12]} {[%emt 00:00:07]} 1-0

[Event "Schack-SM 2022: Mastarklassen"]
[Site "Fyrishov, Idrottsgatan 2, Uppsala, Sweden"]
[Date "2022.07.07"]
[Round "6.5"]
[White "Mardell, Jimmy"]
[Black "Johansson, Thomas"]
[Result "0-1"]
[TimeControl "90 minutes for 40 moves + 30 minutes for the rest of the game + 30 seconds per move from move one."]
[WhiteFideId "1705610"]
[BlackFideId "1708244"]
[WhiteElo "2161"]
[BlackElo "2231"]

1. d4 {[%clk 01:30:56]} {[%emt 00:00:03]} Nf6 {[%clk 01:26:40]} {[%emt
00:04:20]} 2. c4 {[%clk 01:31:15]} {[%emt 00:00:12]} g6 {[%clk 01:27:03]}
{[%emt 00:00:07]} 3. f3 {[%clk 01:31:35]} {[%emt 00:00:11]} Bg7 {[%clk
01:27:27]} {[%emt 00:00:05]} 4. e4 {[%clk 01:32:01]} {[%emt 00:00:05]} d6
{[%clk 01:27:52]} {[%emt 00:00:04]} 5. Nc3 {[%clk 01:32:27]} {[%emt 00:00:05]}
O-O {[%clk 01:28:15]} {[%emt 00:00:06]} 6. Be3 {[%clk 01:32:49]} {[%emt
00:00:09]} c5 {[%clk 01:28:38]} {[%emt 00:00:06]} 7. Nge2 {[%clk 01:33:11]}
{[%emt 00:00:07]} Nc6 {[%clk 01:29:03]} {[%emt 00:00:05]} 8. d5 {[%clk
01:33:35]} {[%emt 00:00:07]} Na5 {[%clk 01:29:29]} {[%emt 00:00:03]} 9. Nc1
{[%clk 01:30:00]} {[%emt 00:04:06]} a6 {[%clk 01:26:01]} {[%emt 00:03:58]} 10.
a4 {[%clk 01:22:36]} {[%emt 00:07:54]} e6 {[%clk 01:23:42]} {[%emt 00:02:47]}
11. Be2 {[%clk 01:22:04]} {[%emt 00:01:03]} exd5 {[%clk 01:24:00]} {[%emt
00:00:13]} 12. cxd5 {[%clk 01:22:27]} {[%emt 00:00:07]} Nd7 {[%clk 01:24:00]}
{[%emt 00:00:29]} 13. O-O {[%clk 01:20:51]} {[%emt 00:02:07]} Ne5 {[%clk
01:24:12]} {[%emt 00:00:17]} 14. Nb3 {[%clk 01:00:33]} {[%emt 00:20:49]} Nec4
{[%clk 01:17:39]} {[%emt 00:07:02]} 15. Bc1 {[%clk 01:00:31]} {[%emt 00:00:33]}
Nxb3 {[%clk 00:58:41]} {[%emt 00:19:28]} 16. Qxb3 {[%clk 01:00:44]} {[%emt
00:00:16]} Na5 {[%clk 00:58:20]} {[%emt 00:00:51]} 17. Qc2 {[%clk 00:55:25]}
{[%emt 00:05:50]} f5 {[%clk 00:58:17]} {[%emt 00:00:32]} 18. Be3 {[%clk
00:46:56]} {[%emt 00:08:59]} Qb6 {[%clk 00:55:11]} {[%emt 00:03:36]} 19. Rab1
{[%clk 00:39:49]} {[%emt 00:07:37]} Bd4 {[%clk 00:54:18]} {[%emt 00:01:21]} 20.
Qd3 {[%clk 00:31:19]} {[%emt 00:09:02]} Bxe3+ {[%clk 00:49:58]} {[%emt
00:04:50]} 21. Qxe3 {[%clk 00:31:43]} {[%emt 00:00:07]} f4 {[%clk 00:49:58]}
{[%emt 00:00:30]} 22. Qf2 {[%clk 00:31:32]} {[%emt 00:00:41]} Qb4 {[%clk
00:48:04]} {[%emt 00:02:23]} 23. Rfd1 {[%clk 00:28:47]} {[%emt 00:03:15]} Bd7
{[%clk 00:48:17]} {[%emt 00:00:17]} 24. e5 {[%clk 00:23:32]} {[%emt 00:05:46]}
dxe5 {[%clk 00:44:53]} {[%emt 00:03:54]} 25. Ne4 {[%clk 00:22:31]} {[%emt
00:01:30]} Bf5 {[%clk 00:44:41]} {[%emt 00:00:41]} 26. Rbc1 {[%clk 00:22:24]}
{[%emt 00:00:37]} Bxe4 {[%clk 00:44:27]} {[%emt 00:00:44]} 27. fxe4 {[%clk
00:22:50]} {[%emt 00:00:04]} c4 {[%clk 00:40:51]} {[%emt 00:04:07]} 28. Bg4
{[%clk 00:19:47]} {[%emt 00:03:33]} Qd6 {[%clk 00:39:18]} {[%emt 00:02:01]} 29.
Qe1 {[%clk 00:14:32]} {[%emt 00:05:47]} b6 {[%clk 00:34:54]} {[%emt 00:04:54]}
30. Qc3 {[%clk 00:10:15]} {[%emt 00:04:47]} Ra7 {[%clk 00:35:04]} {[%emt
00:00:20]} 31. Rf1 {[%clk 00:06:28]} {[%emt 00:04:17]} Rc7 {[%clk 00:26:30]}
{[%emt 00:09:04]} 32. g3 {[%clk 00:06:50]} {[%emt 00:00:09]} g5 {[%clk
00:26:11]} {[%emt 00:00:48]} 33. Be6+ {[%clk 00:05:59]} {[%emt 00:01:21]} Kh8
{[%clk 00:26:28]} {[%emt 00:00:13]} 34. Rc2 {[%clk 00:05:18]} {[%emt 00:01:11]}
Nb3 {[%clk 00:23:44]} {[%emt 00:03:13]} 35. gxf4 {[%clk 00:03:06]} {[%emt
00:02:43]} gxf4 {[%clk 00:21:36]} {[%emt 00:02:36]} 36. Rg2 {[%clk 00:03:24]}
{[%emt 00:00:12]} Nd4 {[%clk 00:19:11]} {[%emt 00:02:55]} 37. Kh1 {[%clk
00:01:17]} {[%emt 00:02:38]} Nxe6 {[%clk 00:17:41]} {[%emt 00:02:00]} 38. dxe6
{[%clk 00:01:43]} {[%emt 00:00:04]} Qxe6 {[%clk 00:17:51]} {[%emt 00:00:20]} 39.
Rg5 {[%clk 00:01:24]} {[%emt 00:00:49]} Re7 {[%clk 00:17:45]} {[%emt 00:00:36]}
40. Rd1 {[%clk 00:00:41]} {[%emt 00:01:13]} f3 {[%clk 00:15:36]} {[%emt
00:02:38]} 41. Rf1 {[%clk 00:28:13]} {[%emt 00:02:59]} h6 {[%clk 00:38:18]}
{[%emt 00:07:47]} 42. Rg3 {[%clk 00:25:41]} {[%emt 00:03:02]} f2 {[%clk
00:35:04]} {[%emt 00:03:44]} 43. Qe3 {[%clk 00:24:54]} {[%emt 00:01:18]} Ref7
{[%clk 00:34:36]} {[%emt 00:00:57]} 44. Qe2 {[%clk 00:15:17]} {[%emt 00:10:07]}
Kh7 {[%clk 00:29:57]} {[%emt 00:05:09]} 45. Rg2 {[%clk 00:07:47]} {[%emt
00:08:01]} b5 {[%clk 00:25:07]} {[%emt 00:05:20]} 46. axb5 {[%clk 00:07:34]}
{[%emt 00:00:43]} axb5 {[%clk 00:25:31]} {[%emt 00:00:05]} 47. Rgxf2 {[%clk
00:07:50]} {[%emt 00:00:14]} Rxf2 {[%clk 00:25:52]} {[%emt 00:00:10]} 48. Rxf2
{[%clk 00:08:17]} {[%emt 00:00:03]} Rf4 {[%clk 00:22:03]} {[%emt 00:04:18]} 49.
Qe3 {[%clk 00:03:00]} {[%emt 00:05:47]} Qg4 {[%clk 00:13:36]} {[%emt 00:08:56]}
50. h3 {[%clk 00:02:01]} {[%emt 00:01:30]} Qd1+ {[%clk 00:10:59]} {[%emt
00:03:06]} 51. Kh2 {[%clk 00:02:25]} {[%emt 00:00:06]} Rxf2+ {[%clk 00:09:57]}
{[%emt 00:01:33]} 52. Qxf2 {[%clk 00:02:51]} {[%emt 00:00:04]} Qd7 {[%clk
00:07:15]} {[%emt 00:03:11]} 53. Qf6 {[%clk 00:02:20]} {[%emt 00:01:01]} Qd2+
{[%clk 00:07:36]} {[%emt 00:00:09]} 54. Kg1 {[%clk 00:01:49]} {[%emt 00:01:01]}
Qg5+ {[%clk 00:07:59]} {[%emt 00:00:07]} 55. Qxg5 {[%clk 00:02:02]} {[%emt
00:00:17]} hxg5 {[%clk 00:08:24]} {[%emt 00:00:06]} 56. Kf2 {[%clk 00:02:28]}
{[%emt 00:00:04]} b4 {[%clk 00:08:36]} {[%emt 00:00:18]} 57. Ke3 {[%clk
00:02:49]} {[%emt 00:00:09]} Kg6 {[%clk 00:08:56]} {[%emt 00:00:09]} 0-1

[Event "Schack-SM 2022: Mastarklassen"]
[Site "Fyrishov, Idrottsgatan 2, Uppsala, Sweden"]
[Date "2022.07.07"]
[Round "6.6"]
[White "Sundin, Emanuel"]
[Black "Pettersson, Tobias"]
[Result "0-1"]
[TimeControl "90 minutes for 40 moves + 30 minutes for the rest of the game + 30 seconds per move from move one."]
[WhiteFideId "1719173"]
[BlackFideId "1705962"]
[WhiteElo "2160"]
[BlackElo "2027"]

1. d4 {[%clk 01:28:35]} {[%emt 00:02:25]} d6 {[%clk 01:29:42]} {[%emt
00:01:18]} 2. c4 {[%clk 01:28:48]} {[%emt 00:00:16]} g6 {[%clk 01:30:00]}
{[%emt 00:00:12]} 3. Nc3 {[%clk 01:28:56]} {[%emt 00:00:23]} Bg7 {[%clk
01:30:21]} {[%emt 00:00:08]} 4. e4 {[%clk 01:29:09]} {[%emt 00:00:18]} Nf6
{[%clk 01:30:42]} {[%emt 00:00:09]} 5. Be2 {[%clk 01:29:21]} {[%emt 00:00:18]}
O-O {[%clk 01:30:53]} {[%emt 00:00:19]} 6. Be3 {[%clk 01:29:17]} {[%emt
00:00:34]} e5 {[%clk 01:28:09]} {[%emt 00:03:14]} 7. d5 {[%clk 01:29:09]}
{[%emt 00:00:39]} Na6 {[%clk 01:25:58]} {[%emt 00:02:40]} 8. h4 {[%clk
01:29:01]} {[%emt 00:00:38]} Nc5 {[%clk 01:24:05]} {[%emt 00:02:24]} 9. Qc2
{[%clk 01:26:54]} {[%emt 00:02:37]} Ng4 {[%emt 00:07:50]} 10. Bxg4 {[%clk
01:17:01]} {[%emt 00:06:11]} Bxg4 {[%clk 01:21:16]} {[%emt 00:00:11]} 11. f3
{[%clk 01:09:11]} {[%emt 00:08:20]} Bd7 {[%clk 01:19:35]} {[%emt 00:02:10]} 12.
g4 {[%clk 01:06:51]} {[%emt 00:02:50]} f5 {[%clk 01:17:03]} {[%emt 00:03:01]}
13. gxf5 {[%clk 01:00:33]} {[%emt 00:06:48]} gxf5 {[%clk 01:17:07]} {[%emt
00:00:26]} 14. O-O-O {[%clk 00:58:54]} {[%emt 00:02:09]} fxe4 {[%clk 01:12:04]}
{[%emt 00:05:33]} 15. fxe4 {[%clk 00:59:11]} {[%emt 00:00:13]} Bg4 {[%clk
01:10:48]} {[%emt 00:01:44]} 16. Nge2 {[%clk 00:50:28]} {[%emt 00:09:14]} Kh8
{[%clk 01:07:59]} {[%emt 00:03:18]} 17. Rdg1 {[%clk 00:46:28]} {[%emt
00:04:30]} Qd7 {[%clk 01:05:28]} {[%emt 00:03:02]} 18. h5 {[%clk 00:44:07]}
{[%emt 00:02:52]} Rg8 {[%clk 00:56:10]} {[%emt 00:09:48]} 19. Ng3 {[%clk
00:36:52]} {[%emt 00:07:45]} Raf8 {[%clk 00:50:04]} {[%emt 00:06:35]} 20. b4
{[%clk 00:36:26]} {[%emt 00:00:57]} Na6 {[%clk 00:41:35]} {[%emt 00:08:59]} 21.
a3 {[%clk 00:36:49]} {[%emt 00:00:08]} c5 {[%clk 00:31:51]} {[%emt 00:10:13]}
22. b5 {[%clk 00:35:46]} {[%emt 00:01:33]} Nc7 {[%clk 00:31:22]} {[%emt
00:00:59]} 23. Rh2 {[%clk 00:33:09]} {[%emt 00:03:07]} a6 {[%clk 00:30:53]}
{[%emt 00:01:00]} 24. a4 {[%clk 00:29:30]} {[%emt 00:04:09]} axb5 {[%clk
00:31:05]} {[%emt 00:00:18]} 25. axb5 {[%clk 00:29:52]} {[%emt 00:00:08]} Na8
{[%clk 00:31:00]} {[%emt 00:00:34]} 26. Na4 {[%clk 00:28:26]} {[%emt 00:01:56]}
Nc7 {[%clk 00:24:51]} {[%emt 00:06:39]} 27. Qd2 {[%clk 00:26:31]} {[%emt
00:02:26]} Rf3 {[%clk 00:18:54]} {[%emt 00:06:27]} 28. Kc2 {[%clk 00:20:01]}
{[%emt 00:07:00]} Ra8 {[%clk 00:17:51]} {[%emt 00:01:33]} 29. Nc3 {[%clk
00:17:59]} {[%emt 00:02:33]} Ne8 {[%clk 00:16:29]} {[%emt 00:01:52]} 30. Nh1
{[%clk 00:17:25]} {[%emt 00:01:04]} Nf6 {[%clk 00:16:05]} {[%emt 00:00:54]} 31.
h6 {[%clk 00:16:18]} {[%emt 00:01:38]} Bf8 {[%clk 00:16:00]} {[%emt 00:00:34]}
32. Nf2 {[%clk 00:14:05]} {[%emt 00:02:43]} Be7 {[%clk 00:15:21]} {[%emt
00:01:09]} 33. Kb3 {[%clk 00:13:47]} {[%emt 00:00:48]} Rg8 {[%clk 00:12:59]}
{[%emt 00:02:51]} 34. Bg5 {[%clk 00:13:07]} {[%emt 00:01:11]} Nxd5 {[%clk
00:06:30]} {[%emt 00:06:59]} 35. Nxg4 {[%emt 00:07:31]} Nxc3 {[%clk 00:06:16]}
{[%emt 00:00:26]} 36. Bf6+ {[%emt 00:09:11]} Bxf6 {[%clk 00:03:35]} {[%emt
00:00:20]} 37. Nxf6 {[%clk 00:01:02]} {[%emt 00:00:01]} Nxe4+ {[%clk 00:03:47]}
{[%emt 00:00:17]} 38. Kb2 {[%clk 00:00:56]} {[%emt 00:00:37]} Rxg1 {[%clk
00:02:08]} {[%emt 00:02:09]} 39. Nxd7 {[%clk 00:01:06]} {[%emt 00:00:19]} Nxd2
{[%clk 00:02:27]} {[%emt 00:00:11]} 40. Rxd2 {[%clk 00:01:20]} {[%emt
00:00:15]} e4 {[%clk 00:02:24]} {[%emt 00:00:35]} 41. Kc2 {[%clk 00:25:43]}
{[%emt 00:06:07]} e3 {[%clk 00:31:08]} {[%emt 00:01:41]} 42. Rxd6 {[%clk
00:24:52]} {[%emt 00:01:25]} e2 {[%clk 00:30:31]} {[%emt 00:01:07]} 43. Ne5
{[%clk 00:25:07]} {[%emt 00:00:15]} e1=Q {[%clk 00:28:40]} {[%emt 00:02:22]} 44.
Nxf3 {[%emt 00:01:02]} Qe4+ {[%clk 00:27:50]} {[%emt 00:01:08]} 45. Rd3 {[%clk
00:24:50]} {[%emt 00:00:27]} Qxc4+ {[%clk 00:27:40]} {[%emt 00:00:40]} 46. Kd2
{[%clk 00:24:40]} {[%emt 00:00:39]} Rd1+ {[%clk 00:27:43]} {[%emt 00:00:26]}
0-1